Cogmind - Beta 15 @@@ ROGUE MODE // 2025.05.30 @ 00:16:11 Player: Skysub Result: Destroyed by B-60 Warrior with Heavy Mace Performance ------------- Evolutions (5) 2500 Regions Visited (13) 2600 Robots Destroyed (97) 485 Value Destroyed (4027) 4027 Prototype IDs (26) 520 Alien Tech Used (1) 200 Bonus (4086) 4086 TOTAL SCORE: 14418 Bonus ------- High Alert Combat Kills 248 Follower Combat Kills 1401 Registered with UFD 300 Met Optimus in HQ 500 Met Data Miner 300 Met Zhirov 300 Built Enhanced Grunts 300 Met R17 at Cetus 500 Read Decrypted Archives 300 Friendly Fire -63 Cogmind --------- Core Integrity 0/1000 Matter 109/300 Energy 565/565 System Corruption 14% Temperature Critical (502) Movement Immobile (Siege) Location -5/Hub_04(d) Parts ------- > --- POWER (2) -------- Neutrino Core Quantum Reactor > --- PROPULSION (4) --- Centrium Heavy Treads Centrium Heavy Treads > --- UTILITY (9) ------ Enhanced Optical Array Improved Signal Interpreter Targeting Computer Improved Target Analyzer Advanced Target Analyzer Centrium Medium Armor Plating Centrium Medium Armor Plating Hacking Suite Advanced System Shield > --- WEAPON (3) ------- KE Penetrator Advanced KE Penetrator Advanced KE Penetrator > --- INVENTORY (5) ---- Centrium Heavy Treads Structural Scanner Centrium Medium Armor Plating Hacking Suite Peak State ------------ > --- POWER ------------ Neutrino Core Quantum Reactor > --- PROPULSION ------- Centrium Heavy Treads Centrium Heavy Treads > --- UTILITY ---------- Enhanced Optical Array Improved Signal Interpreter Targeting Computer Improved Target Analyzer Advanced Target Analyzer Centrium Medium Armor Plating Centrium Medium Armor Plating Centrium Medium Armor Plating Hacking Suite > --- WEAPON ----------- KE Penetrator Advanced KE Penetrator Advanced KE Penetrator > --- INVENTORY -------- Centrium Heavy Treads Structural Scanner Hacking Suite Advanced System Shield [Rating: 126] Favorites ----------- Power Light Ion Engine Engine Light Ion Engine Power Core Fission Core Reactor Quantum Reactor Propulsion Light Treads Treads Light Treads Leg Cargo Legs Wheel Subdweller Monowheel Hover Unit Antigrav System Flight Unit Nuclear Pulse Thruster Utility Improved Signal Interpreter Device Structural Scanner Storage Large Storage Unit Processor Improved Signal Interpreter Hackware Hacking Suite Protection Improved Medium Armor Plating Weapon KE Penetrator Energy Gun Medium Laser Energy Cannon Proton Cannon Ballistic Gun KE Penetrator Ballistic Cannon Gauss Cannon Launcher Rocket Launcher Special Weapon Improved Remote Datajack Impact Weapon Makeshift Hammer Slashing Weapon Makeshift Axe Special Melee Weapon Datajack Build | -11 -10 -10 -9 -6 -6 -6 -6 -5 -5 -5 -5 -5 -5 ------- Run | Yrd Mat Sub Scr Fac Low Low Dat Pro Fac Ext Cet Arc Hub Slots Evolved 10 | . . . . 8 . . . . 2 . . . . Power 1 | . . . . 1 . . . . . . . . . Propulsion 2 | . . . . 2 . . . . . . . . . Utility 6 | . . . . 4 . . . . 2 . . . . Weapon 1 | . . . . 1 . . . . . . . . . Parts Attached 127 | 6 4 8 9 10 2 2 . 4 19 50 11 1 1 Power 16 | 1 . 1 2 1 . . . . 4 5 2 . . Engine 5 | 1 . 1 . . . . . . 1 2 . . . Core 9 | . . . 2 1 . . . . 3 3 . . . Reactor 2 | . . . . . . . . . . . 2 . . Propulsion 34 | 2 1 3 2 2 . . . 1 4 17 2 . . Treads 15 | 2 1 1 1 . . . . . . 8 2 . . Leg 8 | . . . 1 2 . . . 1 4 . . . . Wheel 2 | . . 2 . . . . . . . . . . . Hover 5 | . . . . . . . . . . 5 . . . Flight 4 | . . . . . . . . . . 4 . . . Utility 47 | 1 2 1 2 6 1 2 . . 5 20 5 1 1 Device 19 | . 1 . 1 2 . 1 . . 1 12 1 . . Storage 3 | 1 1 . 1 . . . . . . . . . . Processor 10 | . . . . 2 . . . . 2 5 1 . . Hackware 4 | . . . . 2 . . . . . 1 . . 1 Protection 11 | . . 1 . . 1 1 . . 2 2 3 1 . Artifact . | . . . . . . . . . . . . . . Weapon 30 | 2 1 3 3 1 1 . . 3 6 8 2 . . Energy Gun 2 | . 1 1 . . . . . . . . . . . Energy Cannon 1 | . . . 1 . . . . . . . . . . Ballistic Gun 15 | 2 . 1 2 . . . . 1 4 3 2 . . Ballistic Cannon 2 | . . . . . . . . 2 . . . . . Launcher 2 | . . . . . 1 . . . 1 . . . . Special Weapon 3 | . . . . . . . . . . 3 . . . Impact Weapon 3 | . . . . 1 . . . . 1 1 . . . Slashing Weapon 1 | . . 1 . . . . . . . . . . . Piercing Weapon . | . . . . . . . . . . . . . . Special Melee Weapon 1 | . . . . . . . . . . 1 . . . Unidentified Prototypes 6 | . . . . . 1 1 . . 1 . 3 . . Corrupted Parts 7 | . . . . . . . . 1 2 3 1 . . System Corruption 48 | . . . . . . . . 4 23 16 5 . . Parts Lost 42 | . 2 3 . . . . . 5 20 6 6 . . Power 7 | . . . . . . . . 1 3 2 1 . . Propulsion 12 | . 1 2 . . . . . 1 6 2 . . . Utility 11 | . . . . . . . . . 7 . 4 . . Weapon 12 | . 1 1 . . . . . 3 4 2 1 . . Highest Loss Streak 9 | . 2 2 . . . . . 5 9 3 5 . . To Critical Strikes . | . . . . . . . . . . . . . . Average Backups 9 | 3 6 13 9 16 18 20 21 20 8 4 4 4 4 Power . | . 1 1 . 1 . 1 1 1 . . . . . Propulsion 1 | 1 2 3 1 . . . . . . 1 . 1 1 Utility 3 | . . 2 5 5 6 7 9 9 3 1 2 3 3 Weapon 2 | . 2 5 2 4 5 6 7 5 2 1 . . . Tool/Special . | . . . . . . . . . . . . . . Unused Backups 35 | . . 6 7 2 . 1 . . 11 3 3 . 2 Power 3 | . . 2 . . . . . . 1 . . . . Propulsion 6 | . . 2 2 . . . . . . . 1 . 1 Utility 10 | . . . 2 1 . 1 . . 4 . 1 . 1 Weapon 12 | . . 2 3 . . . . . 3 3 1 . . Tool/Special 4 | . . . . 1 . . . . 3 . . . . Average Slot Usage (%) 83 | . 85 99 74 70 88 86 77 67 74 84 85 88 88 Engine 4 | . 14 14 1 . . . . . . 3 . . . Core 5 | . . . 7 8 11 11 11 6 4 5 5 5 5 Treads 14 | . 24 26 21 . . . . . . 13 12 11 11 Leg 4 | . . . 1 13 17 16 16 11 13 . . . . Device 8 | . 4 11 7 13 10 10 5 5 11 9 4 1 4 Storage 7 | . 14 14 12 5 5 5 5 5 1 . . . . Processor 10 | . . . . 2 11 11 11 11 12 29 28 27 27 Hackware 3 | . . . . 5 11 11 11 11 9 3 5 5 8 Protection 2 | . . 2 1 3 . 4 . . 6 1 7 14 9 Energy Gun 3 | . 6 12 6 . . . . . . . . . . Ballistic Gun 10 | . 20 4 10 8 11 11 11 7 7 10 15 16 16 Impact Weapon 1 | . . . . 3 4 5 5 2 4 2 . . . Slashing Weapon 1 | . . 10 . . . . . . . . . . . Peak Build Rating 126 | 6 8 20 38 72 78 91 91 94 111 95 119 126 124 Average Rating 49 | 5 6 12 14 61 74 81 91 88 96 75 105 125 119 On Entrance 60 | . 6 8 15 38 72 78 91 91 92 27 84 119 126 Naked Turns 73 | . . . 73 . . . . . . . . . . Heaviest Build 86 | 11 26 34 61 77 74 76 76 86 83 44 66 72 66 Greatest Support 160 | 40 40 40 55 85 85 85 85 95 95 130 160 160 160 Greatest Overweight (x) 5 | . . 1 1 1 . . . 1 1 5 . . . Average Overweight (x) . | . . . . . . . . . . . . . . Largest Inventory Capacity 25 | 8 15 15 25 25 25 25 25 25 25 5 5 5 5 Average Capacity 13 | 7 9 15 15 25 25 25 25 25 11 5 5 5 5 Most Carried 25 | 4 10 15 23 23 24 25 25 25 23 5 5 5 5 Average Carried 11 | 3 6 14 11 18 21 24 25 24 10 4 4 5 5 Final Capacity 25 | 8 15 15 25 25 25 25 25 25 5 5 5 5 5 Final Carried 25 | 4 10 14 23 18 22 25 25 24 4 5 5 5 5 Class Distribution -------------------- 50% | Mutant 13% | Hacker-Assassin 13% | Scavenger-Gunner 7% | Scavenger-Mutant 4% | Scavenger-Assassin 4% | Scavenger-Tank 3% | Hacker-Mutant Dominant Class ---------------- Mutant | -10/Materials Mutant | -10/Subcaves Mutant | -9/Scraptown Mutant | -6/Factory Hacker-Assassin | -6/Lower Caves Hacker-Assassin | -6/Lower Caves Hacker-Mutant | -6/Data Miner Hacker-Mutant | -5/Proximity Caves Scavenger-Assassin | -5/Factory Scavenger-Gunner | -5/Extension Scavenger-Tank | -5/Cetus Scavenger-Tank | -5/Archives Scavenger-Tank | -5/Hub_04(d) Resources | -11 -10 -10 -9 -6 -6 -6 -6 -5 -5 -5 -5 -5 -5 ----------- Run | Yrd Mat Sub Scr Fac Low Low Dat Pro Fac Ext Cet Arc Hub Matter Collected 4998 | 276 249 57 150 . 286 127 . 87 1383 1922 461 . . Remotely . | . . . . . . . . . . . . . . Salvage Created 4380 | 10 510 135 . . 117 20 . 74 1567 1225 613 . 109 Parts 185 | 5 31 8 . . 8 . . 6 55 48 21 . 3 Haulers Intercepted 3 | . 1 . . . . . . . . 2 . . . Recyclers Shooed 7 | . . . . . . . . . 7 . . . . Parts Field Recycled 4 | . . . . . . . . . 4 . . . . Retrieved Matter 32 | . . . . . . . . . 32 . . . . Parts Self-Destructed 34 | . . 9 . . 8 14 . 3 . . . . . Prevented 4 | . . . . . 3 1 . . . . . . . Kills | -11 -10 -10 -9 -6 -6 -6 -6 -5 -5 -5 -5 -5 -5 ------- Run | Yrd Mat Sub Scr Fac Low Low Dat Pro Fac Ext Cet Arc Hub Combat Hostiles Destroyed 60 | . 12 3 . . 5 . . 2 18 11 8 . 1 Melee 2 | . . . . . . . . . 2 . . . . Guns 48 | . 12 3 . . 5 . . . 12 7 8 . 1 Cannons 2 | . . . . . . . . 2 . . . . . AOE 2 | . . . . . . . . . 2 . . . . Classes Destroyed 15 | 1 5 2 . . 1 1 . 1 3 1 . . . Worker 9 | . . . . . . . . . 9 . . . . Builder 10 | . . . . . . . . . 8 2 . . . Tunneler 2 | 1 . . . . . . . . 1 . . . . Hauler 3 | . 1 . . . . . . . . 2 . . . Recycler 5 | . . . . . . . . . 4 1 . . . Carrier 1 | . . . . . . . . . . 1 . . . Operator 3 | . 1 . . . . . . . . 1 . . 1 Watcher 4 | . 1 . . . . . . . . 1 2 . . Swarmer 8 | . 3 . . . 4 . . . . 1 . . . Grunt 25 | . 9 . . . . . . . 9 6 . . 1 Sentry 7 | . . . . . 1 . . . 3 3 . . . Hunter 3 | . . . . . . . . 2 1 . . . . Programmer 5 | . . . . . . . . . 5 . . . . Cetus Guard 8 | . . . . . . . . . . . 8 . . Cobbler 1 | . . 1 . . . . . . . . . . . Subdweller 3 | . . 3 . . . . . . . . . . . Decomposer 1 | . . . . . . 1 . . . . . . . Thug 1 | . . . . . . . . . . 1 . . . Best Kill Streak 8 | 1 4 1 . . 5 . . 1 8 3 5 . 2 Combat Bots Only 5 | . 4 1 . . 5 . . 1 5 3 4 . 1 Max Kills in Single Turn 2 | 1 1 1 . . 1 1 . 1 2 2 1 . 1 Gunslinging . | . . . . . . . . . . . . . . Exploded 1 | . . . . . . . . . 1 . . . . Melee 1 | . . . . . . . . . 1 . . . . Uniques/NPCs Destroyed . | . . . . . . . . . . . . . . Combat | -11 -10 -10 -9 -6 -6 -6 -6 -5 -5 -5 -5 -5 -5 -------- Run | Yrd Mat Sub Scr Fac Low Low Dat Pro Fac Ext Cet Arc Hub Hostile Shots Fired 677 | . 66 28 . 3 97 . . 57 264 64 71 . 27 Missed 195 | . 18 8 . 1 40 . . 11 77 18 20 . 2 Hits 482 | . 48 20 . 2 57 . . 46 187 46 51 . 25 Melee 5 | . . . . . . . . . . . . . 5 Projectile 477 | . 48 20 . 2 57 . . 46 187 46 51 . 20 AOE 3 | . . . . . . . . . 2 1 . . . Critical Strikes 32 | . . 2 . . . . . 2 15 2 8 . 3 Damage Taken 9526 | . 580 561 . 32 289 . . 799 4141 1176 1365 . 583 Core 1250 | . 83 70 . . 23 . . 57 520 269 116 . 112 Absorbed by Shields 361 | . . . . . 148 . . . 36 177 . . . Reduced by Siege Mode 131 | . . . . . . . . . . . 66 . 65 Regen/Repaired (Parts) 31 | . 31 . . . . . . . . . . . . Core Remaining (%) 76 | 100 . . 38 . . . . 90 . . . . . Volleys Fired 247 | 4 74 14 . . 13 . . 12 72 23 25 . 10 Largest 3 | 2 2 2 . . 3 . . 3 2 3 3 . 3 Hottest 148 | 40 60 75 . . 78 . . 148 63 101 101 . 103 Shots Fired 519 | 8 143 28 . . 30 . . 36 128 51 64 1 30 Gun 485 | 8 143 28 . . 26 . . 18 118 49 64 1 30 Cannon 18 | . . . . . . . . 18 . . . . . Launcher 14 | . . . . . 4 . . . 10 . . . . Special 2 | . . . . . . . . . . 2 . . . Kinetic 468 | 8 124 14 . . 26 . . 34 118 49 64 1 30 Thermal 33 | . 19 14 . . . . . . . . . . . Explosive 14 | . . . . . 4 . . . 10 . . . . Electromagnetic 2 | . . . . . . . . 2 . . . . . Robot Hit Streak 17 | 3 12 12 . . 17 . . 4 17 12 14 6 16 Robot Miss Streak 7 | 2 4 5 . . 2 . . 6 5 5 7 . 1 Penetration Max 2 | . . . . . . . . . 2 1 1 . 1 Secondary Targets 12 | . 1 . . . . . . . 4 3 4 . . Max Gunslinging Chain 1 | . 1 . . . . . . . 1 1 1 . . Shots Hit Robots 392 | 5 94 24 . . 18 1 . 17 104 50 51 1 27 Core Hits 166 | 2 30 10 . . 8 . . 7 59 20 22 . 8 Critical Kills 23 | . . . . . . . . . 8 7 7 . 1 Critical Parts Destroyed 32 | . 1 . . . . . . 1 10 12 6 . 2 Critical Strikes 65 | . 1 1 . . . . . 1 19 20 17 . 6 Burn 1 | . . 1 . . . . . . . . . . . Destroy 53 | . 1 . . . . . . 1 15 13 17 . 6 Smash 11 | . . . . . . . . . 4 7 . . . Melee Attacks 104 | . . 18 . 3 4 3 . 3 45 28 . . . Impact 80 | . . . . 3 4 3 . 3 45 22 . . . Slashing 18 | . . 18 . . . . . . . . . . . Piercing . | . . . . . . . . . . . . . . Sneak Attacks 28 | . . 3 . . . 1 . . 15 9 . . . Combat Hostiles . | . . . . . . . . . . . . . . Follow-up Attacks 1 | . . . . . . . . . . 1 . . . Damage Inflicted 11669 | 49 938 465 . . 495 114 . 294 5397 1645 1480 30 762 Guns 6716 | 49 927 254 . . 288 . . 117 2175 634 1480 30 762 Cannons 177 | . . . . . . . . 177 . . . . . Explosions 1471 | . . . . . 207 . . . 1151 113 . . . Melee 3264 | . . 211 . . . 114 . . 2041 898 . . . Ramming 41 | . 11 . . . . . . . 30 . . . . Kinetic 6608 | 49 808 121 . . 288 . . 261 2175 634 1480 30 762 Thermal 486 | . 119 133 . . . . . . 121 113 . . . Explosive 1237 | . . . . . 207 . . . 1030 . . . . Electromagnetic 33 | . . . . . . . . 33 . . . . . Impact 3053 | . . . . . . 114 . . 2041 898 . . . Slashing 211 | . . 211 . . . . . . . . . . . Piercing . | . . . . . . . . . . . . . . Highest Corruption 63 | . . . . . . . . 4 46 63 14 14 14 Average Corruption 27 | . . . . . . . . 4 27 32 12 14 14 Corruption Purged 56 | . . . . . . . . . . 56 . . . Corruption Blocked . | . . . . . . . . . . . . . . Effects 191 | . . . . . . . . . 43 111 31 2 4 Message Errors 46 | . . . . . . . . . 11 28 6 . 1 Matter Fused 31 | . . . . . . . . . 1 23 5 . 2 Heat Flow Errors 21 | . . . . . . . . . 6 9 6 . . Energy Discharges 21 | . . . . . . . . . 6 10 3 1 1 Parts Rejected 3 | . . . . . . . . . 1 1 1 . . Parts Fused 2 | . . . . . . . . . 1 1 . . . Data Loss (minor) 24 | . . . . . . . . . 3 16 5 . . Data Loss (major) 8 | . . . . . . . . . 2 5 1 . . Misfires 7 | . . . . . . . . . 3 3 . 1 . Alerts 2 | . . . . . . . . . 1 . 1 . . Misdirections 15 | . . . . . . . . . 5 10 . . . Weapon Failures 11 | . . . . . . . . . 3 5 3 . . Overload Shots . | . . . . . . . . . . . . . . Overflow Damage 1425 | . . 31 . . 8 105 . . 932 349 . . . Projectiles 21 | . . . . . . . . . 21 . . . . Explosions 103 | . . . . . 8 . . . 95 . . . . Melee 1301 | . . 31 . . . 105 . . 816 349 . . . Knockbacks 15 | . . . . . . . . 3 10 2 . . . Impact 11 | . . . . . . . . . 9 2 . . . Kinetic 3 | . . . . . . . . 3 . . . . . Secondary 1 | . . . . . . . . . 1 . . . . Self-Inflicted Damage . | . . . . . . . . . . . . . . Shots . | . . . . . . . . . . . . . . Rammed 2 | . 2 . . . . . . . . . . . . Targets Rammed 9 | . 2 . . . . . . . 7 . . . . Kicked 7 | . . . . . . . . . 7 . . . . Crushed . | . . . . . . . . . . . . . . Highest Temperature 493 | . 40 274 . . 122 . . 294 225 276 238 18 493 Average Temperature 83 | . 13 49 . . 31 . . 196 65 77 101 9 218 Received Heat Transfer 2137 | . 288 462 . . 24 . . . 814 240 189 . 120 Effects 2 | . . . . . . . . . . 2 . . . Interference 2 | . . . . . . . . . . 2 . . . Siege Activations 4 | . . . . . . . . . . . 3 . 1 Total Turns 95 | . . . . . . . . . . . 64 . 31 Longest Duration 34 | . . . . . . . . . . . 34 . 31 Martial Activations . | . . . . . . . . . . . . . . Shielding Activations . | . . . . . . . . . . . . . . Robots Disrupted . | . . . . . . . . . . . . . . Combat Hostiles . | . . . . . . . . . . . . . . Robots Corrupted 13 | . . . . . . . . . 8 5 . . . Combat Hostiles 6 | . . . . . . . . . 2 4 . . . Parts Fried 23 | . . . . . . . . . 19 4 . . . Impact Corruptions 38 | . . . . . . 5 . . 22 11 . . . Robots Melted . | . . . . . . . . . . . . . . Combat Hostiles . | . . . . . . . . . . . . . . Parts Melted 2 | . . 1 . . . . . . . 1 . . . Heat Transferred 846 | . 275 421 . . . . . . 100 50 . . . Parts Sabotaged . | . . . . . . . . . . . . . . Parts Stolen . | . . . . . . . . . . . . . . Parts Stripped . | . . . . . . . . . . . . . . Power Chain Reactions . | . . . . . . . . . . . . . . Alert | -11 -10 -10 -9 -6 -6 -6 -6 -5 -5 -5 -5 -5 -5 ------- Run | Yrd Mat Sub Scr Fac Low Low Dat Pro Fac Ext Cet Arc Hub Maximum Alert Level 3 | . . . . . . . . . 2 3 2 2 1 Low Security (%) 47 | 100 100 . . 100 . . . . 26 32 8 68 96 Level 1 18 | . . . . . . . . . 33 5 84 18 3 Level 2 27 | . . . . . . . . . 40 46 6 12 . Level 3 6 | . . . . . . . . . . 15 . . . Level 4 . | . . . . . . . . . . . . . . Level 5 . | . . . . . . . . . . . . . . High Security . | . . . . . . . . . . . . . . Max Security . | . . . . . . . . . . . . . . Peak Influence 856 | 5 164 . . 15 . . . . 510 856 482 424 201 Initial 476 | . . . . . . . . . . 208 476 69 148 Average 262 | . 89 . . 1 . . . . 299 386 289 161 152 Influence Increases 3795 | 5 398 30 . 17 110 . . 50 964 1546 207 385 83 Destroy 0b10 Robot/C 1900 | . 240 . . . 100 . . 40 360 800 160 180 20 Destroy 0b10 Robot/NC 215 | 5 15 . . . . . . . 110 70 10 . 5 Destroy Leader 270 | . 54 . . . 10 . . 10 80 106 . . 10 Allied During Kill 562 | . . . . . . . . . . 379 3 180 . Successful Hack 32 | . 14 . . . . . . . 6 . . . 12 Select Force Hacks 60 | . 60 . . . . . . . . . . . . Disable Machine 195 | . . . . 15 . . . . 75 60 . 15 30 Anti-Garrison Action 150 | . . . . . . . . . 150 . . . . Destroy Structure 276 | . . . . 2 . . . . 138 86 34 10 6 Lose Combat Pursuer 135 | . 15 30 . . . . . . 45 45 . . . Influence Decreases 3604 | 5 360 68 . 16 105 6 . 50 537 1123 884 134 316 Entered New Map 995 | . . 19 . . 1 2 . . . 219 374 104 276 Time Decay 1861 | 5 340 49 . 16 104 4 . 30 337 596 310 30 40 Lost Part 350 | . 20 . . . . . . 20 200 50 60 . . Lost Ally 398 | . . . . . . . . . . 258 140 . . Squads Dispatched 20 | . 5 . . . . . . . 12 3 . . . Investigation 7 | . 4 . . . . . . . 2 1 . . . Extermination 1 | . . . . . . . . . 1 . . . . Reinforcement 8 | . 1 . . . . . . . 5 2 . . . Assault 2 | . . . . . . . . . 2 . . . . Garrison 2 | . . . . . . . . . 2 . . . . Intercept . | . . . . . . . . . . . . . . Searches Triggered . | . . . . . . . . . . . . . . Data Miner Redirects 5 | . . . . . . . . . 4 1 . . . Construction Impeded 6 | . . . . . . . . . 4 2 . . . Haulers Reinforced 1 | . . . . . . . . . 1 . . . . Active Scanning Responses . | . . . . . . . . . . . . . . Cargo Convoy Interrupts . | . . . . . . . . . . . . . . Stealth | -11 -10 -10 -9 -6 -6 -6 -6 -5 -5 -5 -5 -5 -5 --------- Run | Yrd Mat Sub Scr Fac Low Low Dat Pro Fac Ext Cet Arc Hub Distress Signals 8 | . 2 . . . . . . . 3 2 . . 1 Communications Jammed . | . . . . . . . . . . . . . . Distress Signals . | . . . . . . . . . . . . . . Times Spotted 134 | . 26 6 . 1 5 . . 2 35 40 9 . 10 Peak Tracking Total 10 | . 5 2 . 1 4 . . 2 6 10 5 . 10 Tactical Retreats 8 | . 1 1 . . . . . . 3 3 . . . Traps | -11 -10 -10 -9 -6 -6 -6 -6 -5 -5 -5 -5 -5 -5 ------- Run | Yrd Mat Sub Scr Fac Low Low Dat Pro Fac Ext Cet Arc Hub Traps Triggered 7 | . 1 1 . . . . . . . 5 . . . Indirectly . | . . . . . . . . . . . . . . Trap Hack Attempts . | . . . . . . . . . . . . . . Triggered . | . . . . . . . . . . . . . . Disarmed . | . . . . . . . . . . . . . . Reprogrammed . | . . . . . . . . . . . . . . Reused . | . . . . . . . . . . . . . . Traps Extracted . | . . . . . . . . . . . . . . Installed . | . . . . . . . . . . . . . . Triggered . | . . . . . . . . . . . . . . Machines | -11 -10 -10 -9 -6 -6 -6 -6 -5 -5 -5 -5 -5 -5 ---------- Run | Yrd Mat Sub Scr Fac Low Low Dat Pro Fac Ext Cet Arc Hub Machines Disabled 16 | . . 1 . 1 . . . . 6 5 . 1 2 Max in Single Turn 2 | . . 1 . 1 . . . . 2 2 . 1 1 Garrison Access 1 | . . . . . . . . . 1 . . . . Energy Cycler 3 | . . . . . . . . . . 3 . . . Machines Repaired . | . . . . . . . . . . . . . . Machines Dismantled . | . . . . . . . . . . . . . . Machines Sabotaged . | . . . . . . . . . . . . . . Overloaded Fab Kills . | . . . . . . . . . . . . . . Hacking | -11 -10 -10 -9 -6 -6 -6 -6 -5 -5 -5 -5 -5 -5 --------- Run | Yrd Mat Sub Scr Fac Low Low Dat Pro Fac Ext Cet Arc Hub Machines Accessed 27 | . 6 1 3 . 1 2 4 . 6 1 . 1 2 Terminals 10 | . 3 . . . . . . . 4 1 . . 2 Fabricators . | . . . . . . . . . . . . . . Repair Stations 1 | . 1 . . . . . . . . . . . . Recycling Units 3 | . 2 . . . . . . . 1 . . . . Scanalyzers 1 | . . . . . . . . . 1 . . . . Garrison Access . | . . . . . . . . . . . . . . Total Hacks 123 | . 12 9 26 . 1 8 31 . 20 3 . 4 9 Successful 101 | . 9 9 26 . 1 8 31 . 10 . . 4 3 Failed 22 | . 3 . . . . . . . 10 3 . . 6 Catastrophic 8 | . 1 . . . . . . . 4 1 . . 2 Database Lockouts . | . . . . . . . . . . . . . . Manual 26 | . 6 . . . . . . . 9 3 1 . 7 Terminals 28 | . 6 . . . . . . . 10 3 . . 9 Fabricators . | . . . . . . . . . . . . . . Repair Stations 1 | . 1 . . . . . . . . . . . . Recycling Units 13 | . 5 . . . . . . . 8 . . . . Scanalyzers 2 | . . . . . . . . . 2 . . . . Garrison Access . | . . . . . . . . . . . . . . Terminal Hacks 83 | . 1 9 26 . 1 8 31 . 2 . . 4 1 Record 50 | . . 8 20 . . 7 11 . . . . 4 . Part Schematic 12 | . . . . . . . 12 . . . . . . Robot Schematic 5 | . . . . . . . 5 . . . . . . Robot Analysis 6 | . . . 6 . . . . . . . . . . Prototype ID Bank 3 | . . . . . . . 3 . . . . . . Open Door 2 | . . . . . 1 1 . . . . . . . Branch Access Points 1 | . . . . . . . . . 1 . . . . Terminal Index 1 | . 1 . . . . . . . . . . . . Recycling Unit Index 1 | . . . . . . . . . . . . . 1 Dispatch Records 1 | . . . . . . . . . 1 . . . . Proto ID Catalog 1 | . . 1 . . . . . . . . . . . Fabricator Hacks . | . . . . . . . . . . . . . . Repair Station Hacks . | . . . . . . . . . . . . . . Recycling Unit Hacks 6 | . 3 . . . . . . . 3 . . . . Report Inventory 3 | . 2 . . . . . . . 1 . . . . Retrieve Matter 1 | . . . . . . . . . 1 . . . . Retrieve Components 2 | . 1 . . . . . . . 1 . . . . Scanalyzer 2 | . . . . . . . . . 2 . . . . Insert Component 1 | . . . . . . . . . 1 . . . . Analyze 1 | . . . . . . . . . 1 . . . . Garrison Access Hacks . | . . . . . . . . . . . . . . Unauthorized Hacks 10 | . 5 . . . . . . . 3 . . . 2 Terminals 7 | . 2 . . . . . . . 3 . . . 2 Botnet 7 | . 2 . . . . . . . 3 . . . 2 Fabricators . | . . . . . . . . . . . . . . Repair Stations 1 | . 1 . . . . . . . . . . . . Patch 1 | . 1 . . . . . . . . . . . . Recycling Units 2 | . 2 . . . . . . . . . . . . Tunnel 2 | . 2 . . . . . . . . . . . . Scanalyzers . | . . . . . . . . . . . . . . Garrison Access . | . . . . . . . . . . . . . . Data Cores Recovered 1 | . . . . . . . . . . 1 . . . Used . | . . . . . . . . . . . . . . Hacking Detections 12 | . 4 . . . . . . . 5 1 . . 2 Full Trace Events 4 | . 1 . . . . . . . 2 1 . . . Feedback Events . | . . . . . . . . . . . . . . Feedback Blocked 1 | . . . . . . . . . 1 . . . . Robot Schematics Acquired 5 | . . . . . . . 5 . . . . . . Robots Built . | . . . . . . . . . . . . . . Authchips . | . . . . . . . . . . . . . . Time . | . . . . . . . . . . . . . . Total Robot Build Rating . | . . . . . . . . . . . . . . Part Schematics Acquired 13 | . . . . . . . 12 . 1 . . . . Parts Built . | . . . . . . . . . . . . . . Authchips . | . . . . . . . . . . . . . . Time . | . . . . . . . . . . . . . . Total Part Build Rating . | . . . . . . . . . . . . . . Parts Repaired . | . . . . . . . . . . . . . . Time . | . . . . . . . . . . . . . . Parts Recycled . | . . . . . . . . . . . . . . Recycled Matter . | . . . . . . . . . . . . . . Retrieved Matter . | . . . . . . . . . . . . . . Retrieved Components 5 | . 2 . . . . . . . 3 . . . . Parts Scanalyzed 1 | . . . . . . . . . 1 . . . . Part Schematics Acquired 1 | . . . . . . . . . 1 . . . . Parts Damaged . | . . . . . . . . . . . . . . Bothacking | -11 -10 -10 -9 -6 -6 -6 -6 -5 -5 -5 -5 -5 -5 ------------ Run | Yrd Mat Sub Scr Fac Low Low Dat Pro Fac Ext Cet Arc Hub Used RIF Installer . | . . . . . . . . . . . . . . Robots Hacked . | . . . . . . . . . . . . . . Non-combat . | . . . . . . . . . . . . . . Combat . | . . . . . . . . . . . . . . Robot Hacks Applied . | . . . . . . . . . . . . . . Relay Couplers Released 2 | . . . . . . . . . 2 . . . . Machine Destruction 2 | . . . . . . . . . 2 . . . . Fabnet Peak Effective % . | . . . . . . . . . . . . . . Robots Rewired 16 | . . . . . . . . . . 16 . . . Allies Hacked 1 | . . . . . . . . . . 1 . . . Hacks Repelled . | . . . . . . . . . . . . . . Allies | -11 -10 -10 -9 -6 -6 -6 -6 -5 -5 -5 -5 -5 -5 -------- Run | Yrd Mat Sub Scr Fac Low Low Dat Pro Fac Ext Cet Arc Hub Total Allies 29 | . . . . . . . . . . 24 5 . . Largest Group 7 | . . . . . . . . . . 7 7 5 . Highest-Rated Group 480 | . . . . . . . . . . 403 480 480 . Highest-Rated Ally 159 | . . . . . . . . . . 159 145 96 . Total Orders . | . . . . . . . . . . . . . . Ally Attacks 261 | . . . . . . . . . . 212 15 34 . Total Damage 7577 | . . . . . . . . . . 5712 580 1285 . Kills 42 | . . . . . . . . . . 33 . 9 . Allies Corrupted 3 | . . . . . . . . . . 3 . . . Allies Melted 1 | . . 1 . . . . . . . . . . . Intel | -11 -10 -10 -9 -6 -6 -6 -6 -5 -5 -5 -5 -5 -5 ------- Run | Yrd Mat Sub Scr Fac Low Low Dat Pro Fac Ext Cet Arc Hub Active Infowar (turns) 9618 | . 247 1523 1531 217 762 721 167 205 1121 2279 681 74 90 Optics 6149 | . . . . 49 762 721 167 205 1121 2279 681 74 90 Sensors 3128 | . . . . 217 685 637 . . 684 849 56 . . IFF 115 | . . . . . . . . . . 115 . . . Structural 6848 | . 247 1523 1531 216 681 637 . . 287 1121 531 5 69 Robot Analysis Total 6 | . . . 6 . . . . . . . . . . Derelict Logs Recovered 5 | . . . 4 . 1 . . . . . . . . Drone Launches . | . . . . . . . . . . . . . . Drone Recoveries . | . . . . . . . . . . . . . . Exploration | -11 -10 -10 -9 -6 -6 -6 -6 -5 -5 -5 -5 -5 -5 ------------- Run | Yrd Mat Sub Scr Fac Low Low Dat Pro Fac Ext Cet Arc Hub Turns Passed 12291 | 485 794 1780 2894 238 762 721 167 205 1121 2279 681 74 90 Spaces Moved 6692 | 62 339 1070 1884 146 570 568 127 120 554 902 274 45 31 Core 295 | 4 . . 260 . . . . . 15 16 . . . Treads 3680 | 58 339 947 1336 . . . . . . 650 274 45 31 Legs 2253 | . . . 183 146 570 568 127 120 539 . . . . Wheels 228 | . . 123 105 . . . . . . . . . . Hover 224 | . . . . . . . . . . 224 . . . Flight 12 | . . . . . . . . . . 12 . . . Fastest Speed 40 | 50 160 120 50 123 123 123 123 123 50 40 160 160 160 Average Speed 141 | 152 160 155 149 128 123 123 123 127 122 135 160 160 160 Slowest Speed 300 | 160 160 240 240 200 123 123 123 195 190 300 160 160 160 Overloaded Moves . | . . . . . . . . . . . . . . Propulsion Burnouts . | . . . . . . . . . . . . . . Robots Hopped . | . . . . . . . . . . . . . . Potential Cave-ins . | . . . . . . . . . . . . . . Cave-ins Triggered . | . . . . . . . . . . . . . . Exploration Rate (%) 50 | 5 55 41 90 6 78 75 78 30 20 82 60 74 8 Regions Visited 13 Branch Regions 10 Pre-discovered Areas 11 | . 2 . 8 . . . 1 . . . . . . Known Exits Taken 9 | . . . . 1 1 1 1 1 1 1 1 1 . Unknown Exits Taken 4 | 1 1 1 1 . . . . . . . . . . Scrap Searched 21 | . . 5 10 . 4 2 . . . . . . . Spaces Dug 23 | . . 3 . 2 4 2 . 3 9 . . . . Terrain Destroyed 137 | . . 3 . 2 17 2 . 6 67 29 4 . 7 Melee 22 | . . 3 . 2 4 2 . 3 8 . . . . Projectile 23 | . . . . . . . . 3 1 8 4 . 7 AOE 91 | . . . . . 13 . . . 57 21 . . . Terrain Rammed . | . . . . . . . . . . . . . . Walls Destroyed . | . . . . . . . . . . . . . . Machines Disabled . | . . . . . . . . . . . . . . Actions | -11 -10 -10 -9 -6 -6 -6 -6 -5 -5 -5 -5 -5 -5 --------- Run | Yrd Mat Sub Scr Fac Low Low Dat Pro Fac Ext Cet Arc Hub Total 8906 | 443 460 1144 1973 193 602 591 138 143 798 1863 464 47 47 Wait 1320 | 367 35 7 . 23 . 2 12 . 74 658 137 2 3 Move 6679 | 61 338 1069 1883 145 569 567 126 119 553 901 273 44 31 Hop . | . . . . . . . . . . . . . . Pick Up 112 | 5 7 15 43 6 5 8 . 3 8 8 4 . . Fast Attach 81 | 5 1 . 10 1 . . . . 11 44 9 . . Attach 41 | 1 2 3 3 10 2 1 . 4 7 7 1 . . Detach 27 | . . . 7 1 . 3 . . . 15 1 . . Swap 54 | . 1 6 2 2 7 1 . 2 11 14 4 1 3 Drop 88 | . . 12 25 2 1 6 . . 10 22 10 . . Fire 247 | 4 74 14 . . 13 . . 12 72 23 25 . 10 Melee 103 | . . 18 . 3 4 3 . 3 45 27 . . . Ram . | . . . . . . . . . . . . . . Kick 7 | . . . . . . . . . 7 . . . . Crush 2 | . 2 . . . . . . . . . . . . Escape Stasis 50 | . . . . . . . . . . 50 . . . Rewire 95 | . . . . . 1 . . . . 94 . . . Trap . | . . . . . . . . . . . . . . Miscellaneous . | . . . . . . . . . . . . . . Route ------- -11/Scrapyard -10/Materials (discovered 3 exits: [*Mat x2] / *Sub) -10/Subcaves (discovered 2 exits: [*Mat] / *Scr) -9/Scraptown (discovered 2 exits: [*Fac x2]) -6/Factory (discovered 4 exits: Fac x2 / *Low x2) -6/Lower Caves -6/Lower Caves (discovered 2 exits: *Fac / *Dat) -6/Data Miner -5/Proximity Caves -5/Factory (discovered 5 exits: [Fac] / *Upp x2 / *Ext x2) -5/Extension (discovered 3 exits: [*Fac x2] / *Cet) -5/Cetus (discovered 2 exits: [*Fac] / *Arc) -5/Archives (discovered 2 exits: [*Fac] / *Hub) -5/Hub_04(d) History --------- Turn | Location | Event 26 | -11/Scrapyard | Discovered new exit (range 15) 486 | -11/Scrapyard | Entered Materials 487 | -10/Materials | Build established: Mutant 537 | -10/Materials | Discovered new exit (range 6) 999 | -10/Materials | Discovered new exit (range 8) 1177 | -10/Materials | Discovered new exit (range 15) 1280 | -10/Materials | Entered Subcaves 1281 | -10/Subcaves | Approached by a straggling Scientist 1398 | -10/Subcaves | Scientist uncovered a shortcut to Scraptown 1560 | -10/Subcaves | A swath of the cavern ceiling suddenly collapsed 1796 | -10/Subcaves | A swath of the cavern ceiling suddenly collapsed 1983 | -10/Subcaves | Visited 4L-MR0's lab 2002 | -10/Subcaves | Found Cargo Legs 2597 | -10/Subcaves | Discovered new exit (range 10) 2973 | -10/Subcaves | Core integrity fell below 50% 3060 | -10/Subcaves | Entered Scraptown 3143 | -9/Scraptown | Visited UFD Registry 3143 | -9/Scraptown | Registered with UFD as "Protonhacker" 3161 | -9/Scraptown | Visited Shadow of the Wyrm 3186 | -9/Scraptown | Visited IN-MT5's Study 3268 | -9/Scraptown | Scanned Subdweller tech in exchange for log data 3273 | -9/Scraptown | Learned location of Quarantine (-2) 3275 | -9/Scraptown | Learned Research terminal intel 3278 | -9/Scraptown | Learned location of Warlord (-5) 3280 | -9/Scraptown | Learned location of Extension (-5) 3302 | -9/Scraptown | Discovered new exit (range 11) 3390 | -9/Scraptown | Guru changed UFD alias to "Laserthruster" 3435 | -9/Scraptown | Heard Great Nut preacher, LISTEN AND RECITE! 3903 | -9/Scraptown | Visited TADAMA 3935 | -9/Scraptown | Visited Bundlers 4034 | -9/Scraptown | Visited SPCMW 4077 | -9/Scraptown | Visited Assassins FH 4148 | -9/Scraptown | Visited Spacefarers 4205 | -9/Scraptown | Visited Science Testing Area 4279 | -9/Scraptown | Visited LU-1G1's Boring Crew 4527 | -9/Scraptown | Visited Derelict Rescue Squad 4537 | -9/Scraptown | Found DRS Beacon 4565 | -9/Scraptown | Visited Analyses Database 4595 | -9/Scraptown | Visited Observation Area 4656 | -9/Scraptown | Visited Supply Room 4696 | -9/Scraptown | Visited Scrapoid Pod Storage 4706 | -9/Scraptown | Found Scrapoid Pod 4741 | -9/Scraptown | Visited Cartography Club 4887 | -9/Scraptown | Learned location of Upper Caves (-4) 4887 | -9/Scraptown | Learned location of Zion (-7) 4887 | -9/Scraptown | Learned 16 Materials zone layouts 4887 | -9/Scraptown | Learned 20 Factory zone layouts 4887 | -9/Scraptown | Learned 16 Research zone layouts 4887 | -9/Scraptown | Learned 4 Mines zone layouts 4887 | -9/Scraptown | Learned 8 Upper Caves zone layouts 4887 | -9/Scraptown | Learned 20 Upper Caves zone layouts 4887 | -9/Scraptown | Learned 24 Upper Caves zone layouts 4887 | -9/Scraptown | Learned 16 Proximity Caves zone layouts 4887 | -9/Scraptown | Learned Factory emergency access door positions 4887 | -9/Scraptown | Learned location of 1 exit from Factory 4887 | -9/Scraptown | Learned location of 1 exit from Upper Caves 4912 | -9/Scraptown | Found Deep Structural Scanner 5574 | -9/Scraptown | Attached Cargo Legs, gained temporary slots: Utility x2 5820 | -9/Scraptown | Met Optimus 5820 | -9/Scraptown | Accepted into 0bPrime 5944 | -9/Scraptown | Discovered new exit (range 3) 5954 | -9/Scraptown | Entered Factory 5954 | -6/Factory | Evolved 8 slots: Power x1, Propulsion x2, Utility x4, Weapon x1 5955 | -6/Factory | Identified exit to Lower Caves 5956 | -6/Factory | Identified exit to Factory 6192 | -6/Factory | Entered Lower Caves 6370 | -6/Lower Caves | Encountered a Warlord checkpoint 6372 | -6/Lower Caves | Learned Factory terminal intel 6411 | -6/Lower Caves | Found Prototype Device 6425 | -6/Lower Caves | Build established: Hacker-Assassin 6647 | -6/Lower Caves | Attracted the attention of an 0b10 checkpoint 6785 | -6/Lower Caves | Discovered new exit (range 10) 6795 | -6/Lower Caves | Identified exit to Lower Caves 6811 | -6/Lower Caves | Found Alien Artifact 6951 | -6/Lower Caves | Identified Core Expander 6951 | -6/Lower Caves | Installed Core Expander, added new Utility slot 6954 | -6/Lower Caves | Entered another Lower Caves area 6957 | -6/Lower Caves | Discovered exit to Factory (range 14) 7015 | -6/Lower Caves | Entered an active Warlord outpost 7030 | -6/Lower Caves | Learned location of 1 exit from Research 7030 | -6/Lower Caves | Learned Factory emergency access door positions 7030 | -6/Lower Caves | Learned Research emergency access door positions 7030 | -6/Lower Caves | Learned Extension security intel 7030 | -6/Lower Caves | Learned Armory security intel 7030 | -6/Lower Caves | Learned Research garrison access intel 7302 | -6/Lower Caves | Found DRS Beacon 7592 | -6/Lower Caves | Identified Heart of Steel 7661 | -6/Lower Caves | Discovered new exit (range 12) 7674 | -6/Lower Caves | Identified exit to Data Miner 7675 | -6/Lower Caves | Entered Data Miner 7675 | -6/Data Miner | Discovered new exit (range 6) 7695 | -6/Data Miner | Identified exit to Proximity Caves 7706 | -6/Data Miner | Met Data Miner 7757 | -6/Data Miner | Received God Mode back door access code from Data Miner 7768 | -6/Data Miner | Learned location of Section 7 (-2) 7768 | -6/Data Miner | Acquired the access code to Warlord's prototype stash 7842 | -6/Data Miner | Entered Proximity Caves 7919 | -5/Proximity Caves | Lost 5 parts (1p1n3w) 8047 | -5/Proximity Caves | Entered Factory 8047 | -5/Factory | Evolved 2 slots: Utility x2 8048 | -5/Factory | Identified exit to Upper Caves 8050 | -5/Factory | Loaded intel: 27 terminal locations 8179 | -5/Factory | Garrison activated, responded to threat 8219 | -5/Factory | Discovered new exit (range 19) 8338 | -5/Factory | Incoming investigation squad redirected 8366 | -5/Factory | Incoming assault squad redirected 8429 | -5/Factory | Lost 3 parts (1n1u1w) 8463 | -5/Factory | System corruption reached 10% 8578 | -5/Factory | Incoming investigation squad redirected 8606 | -5/Factory | Identified exit to Extension 8753 | -5/Factory | System corruption reached 30% 9064 | -5/Factory | Build established: Scavenger-Assassin 9128 | -5/Factory | Incoming assault squad redirected 9156 | -5/Factory | Core integrity fell below 50% 9168 | -5/Factory | Entered Extension 9189 | -5/Extension | Lost 9 parts (2p2n3u2w) 9249 | -5/Extension | Rescued a captive Derelict 9249 | -5/Extension | Rescued a captive Derelict 9262 | -5/Extension | Incoming investigation squad redirected 9353 | -5/Extension | Lost 3 allies 9361 | -5/Extension | Lost 3 parts (1p1n1w) 9602 | -5/Extension | Lost 3 allies 9641 | -5/Extension | Scrapoid Pod released 05E05-D (x5) 9664 | -5/Extension | Rescued A7 9701 | -5/Extension | Build established: Scavenger-Mutant 9917 | -5/Extension | Energy Cycler disabled 9917 | -5/Extension | Rescued a captive Derelict 9950 | -5/Extension | Spotted B-75 Beast 9959 | -5/Extension | Discovered new exit (range 19) 9959 | -5/Extension | Spotted B-75 Beast 9976 | -5/Extension | Allies destroyed B-75 Beast 9988 | -5/Extension | Allies destroyed B-75 Beast 10052 | -5/Extension | Lost 6 allies 10397 | -5/Extension | Build established: Scavenger-Gunner 11193 | -5/Extension | Disrupted transfer network 11417 | -5/Extension | Discovered new exit (range 10) 11419 | -5/Extension | Discovered new exit (range 6) 11428 | -5/Extension | Identified exit to Cetus 11447 | -5/Extension | Entered Cetus 11447 | -5/Cetus | Accompanied by 7 allies (A7) 11452 | -5/Cetus | Acquired a Cetus Manufacturing Module code from A7 11467 | -5/Cetus | Spotted Cetus Guard 11467 | -5/Cetus | Spotted Cetus Guard 11467 | -5/Cetus | Spotted Cetus Guard 11467 | -5/Cetus | Spotted Cetus Guard 11501 | -5/Cetus | Core integrity fell below 20% 11502 | -5/Cetus | Destroyed Cetus Guard 11509 | -5/Cetus | Destroyed Cetus Guard 11523 | -5/Cetus | Lost 7 allies 11524 | -5/Cetus | Destroyed Cetus Guard 11530 | -5/Cetus | Destroyed Cetus Guard 11546 | -5/Cetus | Lost 5 parts (1p3u1w) 11564 | -5/Cetus | Extracted ID and sensor layout for unrecognized location from A7's data core 11682 | -5/Cetus | Discovered new exit (range 22) 11716 | -5/Cetus | Identified exit to Archives 11751 | -5/Cetus | Spotted Cetus Guard 11751 | -5/Cetus | Spotted Cetus Guard 11751 | -5/Cetus | Spotted Cetus Guard 11751 | -5/Cetus | Spotted Cetus Guard 11762 | -5/Cetus | Destroyed Cetus Guard 11765 | -5/Cetus | Destroyed Cetus Guard 11772 | -5/Cetus | Destroyed Cetus Guard 11778 | -5/Cetus | Destroyed Cetus Guard 11793 | -5/Cetus | Discovered new exit (range 21) 11811 | -5/Cetus | Met Revision 17 11947 | -5/Cetus | Started Cetus Manufacturing Module 11972 | -5/Cetus | Manufactured an Enhanced Grunt 11997 | -5/Cetus | Manufactured an Enhanced Grunt 12022 | -5/Cetus | Manufactured an Enhanced Grunt 12047 | -5/Cetus | Manufactured an Enhanced Grunt 12072 | -5/Cetus | Manufactured an Enhanced Grunt 12128 | -5/Cetus | Entered Archives 12128 | -5/Archives | Accompanied by 5 allies 12148 | -5/Archives | Met Zhirov 12154 | -5/Archives | Build established: Scavenger-Tank 12154 | -5/Archives | Reinforcements dispatched to Archives 12162 | -5/Archives | Discovered new exit (range 21) 12164 | -5/Archives | Discovered new exit (range 17) 12175 | -5/Archives | Read partially decrypted archive contents 12199 | -5/Archives | Reinforcements dispatched to Archives 12199 | -5/Archives | Identified exit to Hub_04(d) 12202 | -5/Archives | Entered Hub_04(d) 12292 | -5/Hub_04(d) | Destroyed by B-60 Warrior with Heavy Mace Last Messages --------------- K-01 Serf cleans the Terminal. R-10 Processor collects Imp. Hover Unit. K-01 Serf cleans the Terminal. Slug penetrates Wall. Slug penetrates G-67 Veteran. Destroyed Adv. Heat Sink. Slug penetrates G-67 Veteran. G-67 Veteran destroyed. SH SE%8ADNDYXZUFNJG4MMZ83HHA9C Slug penetrates B-60 Warrior. B-60 Warrior suffers critical hit (Destroy). Slug penetrates B-60 Warrior. B-60 Warrior suffers critical hit (Destroy). Slug penetrates B-60 Warrior. B-60 Warrior suffers critical hit (Destroy). Slug penetrates B-60 Warrior. G-50 Soldier suffers critical hit (Destroy). Destroyed Adv. Heat Sink. W-25 Informer sends out distress signal. K-01 Serf collects debris. Map ----- +----------------------------------------------------+ | ??????????????????? # ########/# ??????????????? | | ??????????????????? # # # ??????????????? | | ??????????????????? # # """" # ??????????????? | | ??????????????????? # # """" + ??????????????? | | ??????????????????? # # """" # ??????????????? | | ??????????????????? + + """" # ??????????????? | | ??????????????????? # # # ??????????????? | | ???????????????????## # # ??????????????? | | ???????????????????## # # ??????????????? | | ???????????????????## # # #???????? | | ???????????????????## #;####+###+##+####???????? | | ???????????????????## # # + ???????? | | ???????????????????## # # """"# ??????????????? | | ???????????????????## # #! """"# ??????????????? | | ???????????????????###### # """"# ??????????????? | | ???????????????????######g# """"# ??????????????? | | ????????????????????#####;# # ??????????????? | | ????????????????????## ####+### ??????????????? | | ????????????????????## " #### ### ???????????? | | ???????????????????? # " ####+###+## ???????????? | | ???????????????????? # " # # ???????????? | | ???????????????????? # u #" # ???????????? | | ????????? ???????? # g #T # ???????????? | | ?????????## ??????? # k # # ???????????? | | ?????????## # ""b# """" # ???????????? | | ?????????## "" g ""@/ %$ "" # # ?????????? | | ???????????? "" # "T # + + ? # ??? | | ???????????????????? #g"" # """" # # *[[ # ??? | | ???????????????????? # ""g########### # ???? # ??? | | ???????????????????? # # # ???????????? | | ???????????????????? ###### ?????????????????????? | | ???????????????????? + ?????????????????????? | | ?????????????????????????????????????????????????? | | ?????????????????????????????????????????????????? | | ?????????????????????????????????????????????????? | | ?????????????????????????????????????????????????? | | ?????????????????????????????????????????????????? | | ?????????????????????????????????????????????????? | | ?????????????????????????????????????????????????? | | ?????????????????????????????????????????????????? | | ?????????????????????????????????????????????????? | | ?????????????????????????????????????????????????? | | ?????????????????????????????????????????????????? | | ?????????????????????????????????????????????????? | | ?????????????????????????????????????????????????? | | ?????????????????????????????????????????????????? | | ?????????????????????????????????????????????????? | | ?????????????????????????????????????????????????? | | | | | +----------------------------------------------------+ Best States ------------- Heat Dissipation 54 Energy Generation 39 Energy Capacity 565 Matter Stores 300 Matter Capacity 300 Sight Range 22 Robot Scan Range 16 Terrain Scan Density 10 Armor Coverage 900 Evasion (%) 62 Targeting Accuracy 5 Melee Accuracy 5 Target Analysis 11 Armor Integrity Analysis 30 Recoil Reduction 4 Offensive Hacking 10 Defensive Hacking 14 Item Schematics ----------------- Combat Drone Bay | -6/Data Miner | Free Lgt. Regenerative Plating | -6/Data Miner | Free Enh. Flexi-carbon Leg | -6/Data Miner | Free Imp. Energy Well | -6/Data Miner | Free Enh. Force Rifle | -6/Data Miner | Free Adv. Medium Treads | -6/Data Miner | Free Adv. Thermal Shield | -6/Data Miner | Free Phase Gun | -6/Data Miner | Free Imp. Component Analysis Suite | -6/Data Miner | Free Railgun | -6/Data Miner | Free Adv. Point Defense System | -6/Data Miner | Free Adv. Launcher Guidance Computer | -6/Data Miner | Free Imp. Target Analyzer | -5/Factory | Scanalyzed Robot Schematics ------------------ R-10 Processor | -6/Data Miner | Free S-27 Virus | -6/Data Miner | Free P-60 Hacker | -6/Data Miner | Free M-22 Extractor | -6/Data Miner | Free M-30 Cleanser | -6/Data Miner | Free Fabricated ------------ Nothing Repaired ---------- Nothing Alien Tech Used ----------------- Core Expander Achievements -------------- None Challenges ------------ None Game ------ Seed SpikedBiocellSubcomponent Manual? 0 Play Time 02:30:25 Cumulative 108.3 hours Start 2025.05.29 @ 17:48:17 End 2025.05.30 @ 00:16:11 Sessions 1 Manual Loads 0 Difficulty Rogue Special Mode None Game No. 113 Rogue 113 Adventurer 0 Explorer 0 Win Type - Total 2 Types 1/0/0/1/0/0/0/0/0/0 Lore% 56 Gallery% 54 Achievement% 48 Wizard Run 0 Options --------- Layout 1 ASCII 0 Keyboard 1 Movement Numpad Keybinds 0 Fullscreen 1 Font 24/Smallcaps Map View 25x17 Zoom Use 73% Tactical HUD 0 Map Filters NONE Filters NONE Steam 1 RUN: 066ebd26-9fd2-4160-976b-4d4e797a56f4